[Event "Late-Titled-Tuesday-Blitz-May-28-2024"]
[Site "Chess.com"]
[Date "2024.05.28"]
[Round "7"]
[White "SRob2003"]
[Black "ural58"]
[Result "1-0"]
[WhiteElo "2684"]
[BlackElo "2438"]
[TimeControl "180+1"]
[EndTime "15:18:41 PDT"]
[Termination "SRob2003 won on time"]

1. c4 {[%clk 0:03:00.9]} 1... e5 {[%clk 0:02:58.2]} 2. g3 {[%clk 0:03:01.1]}
2... c6 {[%clk 0:02:50]} 3. Nf3 {[%clk 0:03:01.1]} 3... e4 {[%clk 0:02:49.8]} 4.
Nd4 {[%clk 0:03:01.6]} 4... d5 {[%clk 0:02:49.9]} 5. d3 {[%clk 0:03:02.1]} 5...
Nf6 {[%clk 0:02:44.5]} 6. Bg2 {[%clk 0:02:59.9]} 6... Bb4+ {[%clk 0:02:37.6]} 7.
Bd2 {[%clk 0:02:58.9]} 7... Bxd2+ {[%clk 0:02:37.4]} 8. Qxd2 {[%clk 0:02:59.8]}
8... O-O {[%clk 0:02:36.4]} 9. Nc3 {[%clk 0:02:55.8]} 9... exd3 {[%clk
0:02:34.1]} 10. Qxd3 {[%clk 0:02:56.7]} 10... dxc4 {[%clk 0:02:33.5]} 11. Qxc4
{[%clk 0:02:57.6]} 11... Nbd7 {[%clk 0:02:33.2]} 12. Rd1 {[%clk 0:02:56.5]}
12... Ne5 {[%clk 0:02:32.8]} 13. Qb3 {[%clk 0:02:56.7]} 13... Qe7 {[%clk
0:02:31.6]} 14. h3 {[%clk 0:02:55]} 14... a6 {[%clk 0:02:12.8]} 15. O-O {[%clk
0:02:50.5]} 15... c5 {[%clk 0:02:11.8]} 16. Nc2 {[%clk 0:02:43.5]} 16... Be6
{[%clk 0:01:57.3]} 17. Qa4 {[%clk 0:02:33.5]} 17... b5 {[%clk 0:01:55.4]} 18.
Qf4 {[%clk 0:02:27.9]} 18... Ng6 {[%clk 0:01:53.8]} 19. Qc1 {[%clk 0:02:21]}
19... Rac8 {[%clk 0:01:52.9]} 20. e4 {[%clk 0:02:15.1]} 20... Bc4 {[%clk
0:01:52.1]} 21. Rfe1 {[%clk 0:02:14.8]} 21... Rfd8 {[%clk 0:01:52.2]} 22. Ne3
{[%clk 0:02:11.3]} 22... Ne5 {[%clk 0:01:49.8]} 23. Nf5 {[%clk 0:01:41.8]} 23...
Qc7 {[%clk 0:01:35.4]} 24. Qc2 {[%clk 0:01:37.3]} 24... Nd3 {[%clk 0:01:27.3]}
25. Re3 {[%clk 0:01:24.6]} 25... Nb4 {[%clk 0:01:27.2]} 26. Qc1 {[%clk
0:01:21.2]} 26... Rxd1+ {[%clk 0:01:26.3]} 27. Qxd1 {[%clk 0:01:22.1]} 27...
Nxa2 {[%clk 0:01:24]} 28. Nxa2 {[%clk 0:01:10.6]} 28... Bxa2 {[%clk 0:01:23.8]}
29. Ra3 {[%clk 0:01:10.1]} 29... Be6 {[%clk 0:01:21.8]} 30. Rxa6 {[%clk
0:01:09]} 30... Bxf5 {[%clk 0:01:20.3]} 31. exf5 {[%clk 0:01:09.9]} 31... h6
{[%clk 0:01:18.5]} 32. Qb3 {[%clk 0:01:05.4]} 32... Qb8 {[%clk 0:01:12.3]} 33.
Ra5 {[%clk 0:01:00.5]} 33... b4 {[%clk 0:00:59.8]} 34. Qc4 {[%clk 0:00:59.8]}
34... Qe5 {[%clk 0:00:57.6]} 35. Ra7 {[%clk 0:00:57]} 35... Rf8 {[%clk
0:00:51.5]} 36. b3 {[%clk 0:00:42.8]} 36... Qxf5 {[%clk 0:00:50.7]} 37. Rc7
{[%clk 0:00:42.9]} 37... Qb1+ {[%clk 0:00:42.4]} 38. Bf1 {[%clk 0:00:41.7]}
38... Ne4 {[%clk 0:00:37.8]} 39. Rd7 {[%clk 0:00:22]} 39... Nc3 {[%clk
0:00:22.2]} 40. Kg2 {[%clk 0:00:21.5]} 40... Qb2 {[%clk 0:00:15.9]} 41. Bd3
{[%clk 0:00:20.5]} 41... Nd1 {[%clk 0:00:13]} 42. Qxc5 {[%clk 0:00:17]} 42...
Qxb3 {[%clk 0:00:11.2]} 43. Bc4 {[%clk 0:00:10.3]} 43... Qa4 {[%clk 0:00:08.9]}
44. Qc7 {[%clk 0:00:04.9]} 44... Qa8+ {[%clk 0:00:07.9]} 45. Kg1 {[%clk
0:00:03.9]} 45... Nxf2 {[%clk 0:00:07.5]} 46. Kxf2 {[%clk 0:00:03.8]} 46... b3
{[%clk 0:00:05.5]} 47. Rxf7 {[%clk 0:00:03.9]} 47... Kh8 {[%clk 0:00:03.7]} 48.
Bxb3 {[%clk 0:00:03.7]} 48... Qe8 {[%clk 0:00:02]} 49. Rxf8+ {[%clk 0:00:04]}
49... Qxf8+ {[%clk 0:00:02.6]} 50. Qf7 {[%clk 0:00:04.7]} 50... Qc5+ {[%clk
0:00:02.3]} 51. Kg2 {[%clk 0:00:04.8]} 51... Qc6+ {[%clk 0:00:02.1]} 52. Qf3
{[%clk 0:00:05]} 52... Qc8 {[%clk 0:00:02.4]} 53. Bd5 {[%clk 0:00:05.4]} 53...
Qb8 {[%clk 0:00:02.7]} 54. h4 {[%clk 0:00:05.5]} 54... Qb2+ {[%clk 0:00:02.6]}
55. Kh3 {[%clk 0:00:06.2]} 55... Qb8 {[%clk 0:00:03.2]} 56. Qf7 {[%clk
0:00:05.5]} 56... Qd8 {[%clk 0:00:03]} 57. Bc6 {[%clk 0:00:04.5]} 57... Qc7
{[%clk 0:00:01.4]} 58. Qxc7 {[%clk 0:00:04.3]} 1-0

[Event "Late-Titled-Tuesday-Blitz-May-28-2024"]
[Site "Chess.com"]
[Date "2024.05.28"]
[Round "7"]
[White "FredddieCroderg"]
[Black "emeli_chess"]
[Result "1-0"]
[WhiteElo "2305"]
[BlackElo "2409"]
[TimeControl "180+1"]
[EndTime "15:18:48 PDT"]
[Termination "FredddieCroderg won by resignation"]

1. d4 {[%clk 0:03:00.9]} 1... Nf6 {[%clk 0:02:59.5]} 2. Bg5 {[%clk 0:02:58.5]}
2... e6 {[%clk 0:02:59.5]} 3. Nd2 {[%clk 0:02:56.6]} 3... h6 {[%clk 0:02:57.6]}
4. Bh4 {[%clk 0:02:54.7]} 4... c5 {[%clk 0:02:57.6]} 5. e3 {[%clk 0:02:53.4]}
5... cxd4 {[%clk 0:02:57.2]} 6. exd4 {[%clk 0:02:52.9]} 6... Be7 {[%clk
0:02:57.2]} 7. Bd3 {[%clk 0:02:51.7]} 7... O-O {[%clk 0:02:55.7]} 8. c3 {[%clk
0:02:51.5]} 8... b6 {[%clk 0:02:55.8]} 9. Qf3 {[%clk 0:02:49.3]} 9... d5 {[%clk
0:02:34.5]} 10. Ne2 {[%clk 0:02:47.1]} 10... Ba6 {[%clk 0:02:33.7]} 11. Bc2
{[%clk 0:02:41.6]} 11... Nc6 {[%clk 0:02:12.8]} 12. O-O {[%clk 0:02:40.7]} 12...
Rc8 {[%clk 0:02:12.1]} 13. Rac1 {[%clk 0:02:36.2]} 13... Ne4 {[%clk 0:01:54.1]}
14. Bxe7 {[%clk 0:02:33.7]} 14... Nxd2 {[%clk 0:01:43.9]} 15. Qf4 {[%clk
0:01:57.6]} 15... Qxe7 {[%clk 0:01:41.9]} 16. Qxd2 {[%clk 0:01:57.1]} 16... Bxe2
{[%clk 0:01:36.9]} 17. Qxe2 {[%clk 0:01:55.5]} 17... Qb7 {[%clk 0:01:31.2]} 18.
Qd3 {[%clk 0:01:54.5]} 18... g6 {[%clk 0:01:30.6]} 19. Rfe1 {[%clk 0:01:54.2]}
19... b5 {[%clk 0:01:30.1]} 20. Re3 {[%clk 0:01:51.9]} 20... Ne7 {[%clk
0:01:23.9]} 21. Rh3 {[%clk 0:01:48.5]} 21... h5 {[%clk 0:01:13.3]} 22. Rxh5
{[%clk 0:01:42.8]} 22... Nf5 {[%clk 0:01:13.2]} 23. Rh3 {[%clk 0:01:38.1]} 23...
Kg7 {[%clk 0:01:11.6]} 24. g4 {[%clk 0:01:22.8]} 24... Nd6 {[%clk 0:01:10.9]}
25. Qe3 {[%clk 0:01:22.9]} 25... Rh8 {[%clk 0:00:56.7]} 26. Qe5+ {[%clk
0:01:20.8]} 26... f6 {[%clk 0:00:56.3]} 27. Qg3 {[%clk 0:01:05.2]} 27... Rxh3
{[%clk 0:00:55]} 28. Qxh3 {[%clk 0:01:04.2]} 28... Rh8 {[%clk 0:00:54.3]} 29.
Qg3 {[%clk 0:01:03.6]} 29... Ne4 {[%clk 0:00:50.8]} 30. Bxe4 {[%clk 0:01:01.7]}
30... dxe4 {[%clk 0:00:50.8]} 31. c4 {[%clk 0:00:58.5]} 31... Rd8 {[%clk
0:00:39.7]} 32. cxb5 {[%clk 0:00:54.8]} 32... Qxb5 {[%clk 0:00:38.9]} 33. Rc7+
{[%clk 0:00:52.7]} 33... Rd7 {[%clk 0:00:39.2]} 34. Qc3 {[%clk 0:00:45.4]} 34...
Kh6 {[%clk 0:00:29.6]} 35. Qc1+ {[%clk 0:00:43.2]} 35... Kg7 {[%clk 0:00:26.9]}
36. Rxd7+ {[%clk 0:00:35.7]} 36... Qxd7 {[%clk 0:00:26.4]} 37. Qc5 {[%clk
0:00:35.3]} 37... a6 {[%clk 0:00:24.4]} 38. h3 {[%clk 0:00:33]} 38... f5 {[%clk
0:00:23.6]} 39. g5 {[%clk 0:00:31.2]} 39... Qa4 {[%clk 0:00:14.4]} 40. Qe5+
{[%clk 0:00:29.7]} 40... Kh7 {[%clk 0:00:14.7]} 41. Qxe6 {[%clk 0:00:25.7]}
41... Qd1+ {[%clk 0:00:13.9]} 42. Kh2 {[%clk 0:00:23.2]} 42... Qd2 {[%clk
0:00:13.2]} 43. Qf7+ {[%clk 0:00:21.3]} 43... Kh8 {[%clk 0:00:13.4]} 44. Qf8+
{[%clk 0:00:21.3]} 44... Kh7 {[%clk 0:00:13.9]} 45. Qh6+ {[%clk 0:00:20.9]}
45... Kg8 {[%clk 0:00:14.3]} 46. Qxg6+ {[%clk 0:00:20.8]} 46... Kh8 {[%clk
0:00:14.8]} 47. Qxf5 {[%clk 0:00:17.8]} 47... Qxd4 {[%clk 0:00:14.6]} 48. g6
{[%clk 0:00:15.8]} 48... Kg7 {[%clk 0:00:11.1]} 49. Qf7+ {[%clk 0:00:12.8]}
49... Kh6 {[%clk 0:00:11.3]} 50. Qh7+ {[%clk 0:00:10.6]} 50... Kg5 {[%clk
0:00:11.4]} 51. h4+ {[%clk 0:00:10.4]} 51... Kg4 {[%clk 0:00:11.2]} 52. Qf7
{[%clk 0:00:06.2]} 52... Qxb2 {[%clk 0:00:10.9]} 53. g7 {[%clk 0:00:05.4]} 53...
Kxh4 {[%clk 0:00:09.4]} 54. g8=Q {[%clk 0:00:03.4]} 54... Qe5+ {[%clk
0:00:09.5]} 55. Qg3+ {[%clk 0:00:03]} 55... Qxg3+ {[%clk 0:00:09]} 56. fxg3+
{[%clk 0:00:03.9]} 56... Kg5 {[%clk 0:00:09.3]} 57. Qg7+ {[%clk 0:00:04.1]}
57... Kf5 {[%clk 0:00:09.4]} 58. g4+ {[%clk 0:00:04.9]} 58... Kf4 {[%clk
0:00:09.7]} 59. g5 {[%clk 0:00:05.2]} 59... e3 {[%clk 0:00:10.1]} 60. g6 {[%clk
0:00:05.5]} 60... e2 {[%clk 0:00:10.1]} 61. Qe7 {[%clk 0:00:05.4]} 61... Kf3
{[%clk 0:00:11]} 62. g7 {[%clk 0:00:05.1]} 62... Kf2 {[%clk 0:00:11.9]} 63.
Qxe2+ {[%clk 0:00:04.2]} 63... Kxe2 {[%clk 0:00:11.9]} 64. g8=Q {[%clk
0:00:04.1]} 64... Kd3 {[%clk 0:00:12.4]} 65. Qa8 {[%clk 0:00:04.6]} 65... Kc2
{[%clk 0:00:12.4]} 66. Qxa6 {[%clk 0:00:05.3]} 66... Kb2 {[%clk 0:00:13.3]} 67.
a4 {[%clk 0:00:05.3]} 67... Kb3 {[%clk 0:00:13.5]} 68. a5 {[%clk 0:00:06.2]}
68... Kb4 {[%clk 0:00:14]} 69. Qb6+ {[%clk 0:00:07.1]} 69... Ka4 {[%clk
0:00:14.3]} 70. a6 {[%clk 0:00:08]} 1-0

[Event "Late-Titled-Tuesday-Blitz-May-28-2024"]
[Site "Chess.com"]
[Date "2024.05.28"]
[Round "7"]
[White "kirillshevchenko"]
[Black "GP9isback23"]
[Result "1-0"]
[WhiteElo "2907"]
[BlackElo "2681"]
[TimeControl "180+1"]
[EndTime "15:18:51 PDT"]
[Termination "kirillshevchenko won on time"]

1. b3 {[%clk 0:03:00.9]} 1... d5 {[%clk 0:02:59.6]} 2. Bb2 {[%clk 0:03:00.5]}
2... e6 {[%clk 0:03:00]} 3. Nf3 {[%clk 0:02:54.6]} 3... Nf6 {[%clk 0:03:00.3]}
4. e3 {[%clk 0:02:53.6]} 4... Be7 {[%clk 0:02:57.9]} 5. g4 {[%clk 0:02:53.4]}
5... O-O {[%clk 0:02:53.1]} 6. g5 {[%clk 0:02:52.1]} 6... Ne4 {[%clk 0:02:52.7]}
7. h4 {[%clk 0:02:48.8]} 7... c5 {[%clk 0:02:44.6]} 8. d3 {[%clk 0:02:45.6]}
8... Nd6 {[%clk 0:02:41.1]} 9. h5 {[%clk 0:02:39.9]} 9... Nc6 {[%clk 0:02:25.5]}
10. Nbd2 {[%clk 0:02:36]} 10... f6 {[%clk 0:02:11.9]} 11. g6 {[%clk 0:01:59.2]}
11... h6 {[%clk 0:02:10.6]} 12. c4 {[%clk 0:01:57.9]} 12... dxc4 {[%clk
0:01:48.5]} 13. Nxc4 {[%clk 0:01:52.7]} 13... e5 {[%clk 0:01:45.1]} 14. Nh4
{[%clk 0:01:50.1]} 14... Be6 {[%clk 0:01:42.6]} 15. Bg2 {[%clk 0:01:38.1]} 15...
Qd7 {[%clk 0:01:37.6]} 16. Qe2 {[%clk 0:01:34.5]} 16... Rad8 {[%clk 0:01:24.3]}
17. Rd1 {[%clk 0:01:25.3]} 17... Nb4 {[%clk 0:01:13.9]} 18. O-O {[%clk
0:01:11.2]} 18... Bg4 {[%clk 0:00:57.9]} 19. Bf3 {[%clk 0:01:10]} 19... Bh3
{[%clk 0:00:56.1]} 20. Nxd6 {[%clk 0:01:04.3]} 20... Bxd6 {[%clk 0:00:53.1]} 21.
a3 {[%clk 0:01:04.7]} 21... Nc6 {[%clk 0:00:46.4]} 22. Rfe1 {[%clk 0:00:53.2]}
22... f5 {[%clk 0:00:43.2]} 23. Bd5+ {[%clk 0:00:24.4]} 23... Kh8 {[%clk
0:00:43.1]} 24. Bf7 {[%clk 0:00:25.3]} 24... Qe7 {[%clk 0:00:40.3]} 25. Ng2
{[%clk 0:00:20.9]} 25... Qg5 {[%clk 0:00:35.2]} 26. f4 {[%clk 0:00:20.9]} 26...
exf4 {[%clk 0:00:34.4]} 27. exf4 {[%clk 0:00:20.9]} 27... Bxf4 {[%clk 0:00:35]}
28. Qf3 {[%clk 0:00:19.4]} 28... Bg3 {[%clk 0:00:25]} 29. Bc1 {[%clk 0:00:15.5]}
29... Qg4 {[%clk 0:00:20.7]} 30. Qxg4 {[%clk 0:00:12.2]} 30... Bxg4 {[%clk
0:00:21.6]} 31. Nf4 {[%clk 0:00:09.7]} 31... Bxd1 {[%clk 0:00:16]} 32. Rxd1
{[%clk 0:00:10.6]} 32... Bxf4 {[%clk 0:00:16]} 33. Bxf4 {[%clk 0:00:10.6]} 33...
Nd4 {[%clk 0:00:15.7]} 34. Kf2 {[%clk 0:00:10]} 34... b6 {[%clk 0:00:13]} 35.
Re1 {[%clk 0:00:09.4]} 35... Nb5 {[%clk 0:00:09.5]} 36. Re7 {[%clk 0:00:07.5]}
36... Nd6 {[%clk 0:00:07.7]} 37. Bxd6 {[%clk 0:00:03.8]} 37... Rxd6 {[%clk
0:00:07.6]} 38. Ke3 {[%clk 0:00:03.8]} 38... a6 {[%clk 0:00:04.5]} 39. Ra7
{[%clk 0:00:01.3]} 39... a5 {[%clk 0:00:04]} 40. Rb7 {[%clk 0:00:01.9]} 40...
Rf6 {[%clk 0:00:03.4]} 41. a4 {[%clk 0:00:01.6]} 41... f4+ {[%clk 0:00:03.9]}
42. Kf3 {[%clk 0:00:02.2]} 42... Rd8 {[%clk 0:00:03.6]} 43. Re7 {[%clk
0:00:01.6]} 43... Rxd3+ {[%clk 0:00:02.9]} 44. Kg4 {[%clk 0:00:02.2]} 44... Rd8
{[%clk 0:00:03.8]} 45. Kf3 {[%clk 0:00:02.5]} 45... Rf8 {[%clk 0:00:04]} 46. Rd7
{[%clk 0:00:02.4]} 46... Rc6 {[%clk 0:00:03.9]} 47. Re7 {[%clk 0:00:01.9]} 47...
Rd6 {[%clk 0:00:03.3]} 48. Kxf4 {[%clk 0:00:01.9]} 48... Rd4+ {[%clk 0:00:03.4]}
49. Ke5 {[%clk 0:00:02.3]} 49... Rh4 {[%clk 0:00:02.5]} 50. Kd6 {[%clk
0:00:02.4]} 50... Rxh5 {[%clk 0:00:03]} 51. Rb7 {[%clk 0:00:01.7]} 51... Rf5
{[%clk 0:00:03.5]} 52. Ke7 {[%clk 0:00:02.2]} 52... Rc8 {[%clk 0:00:03.6]} 53.
Be6 {[%clk 0:00:02.2]} 53... Rff8 {[%clk 0:00:03.3]} 54. Bxc8 {[%clk 0:00:02.2]}
54... Rxc8 {[%clk 0:00:04.2]} 55. Rxb6 {[%clk 0:00:02.9]} 55... Ra8 {[%clk
0:00:03.3]} 56. Rc6 {[%clk 0:00:02.6]} 56... Rb8 {[%clk 0:00:02.5]} 57. Rxc5
{[%clk 0:00:02.8]} 57... Kg8 {[%clk 0:00:02.6]} 58. Rxa5 {[%clk 0:00:03]} 58...
Rb7+ {[%clk 0:00:02.2]} 59. Kd6 {[%clk 0:00:03.1]} 59... Rb8 {[%clk 0:00:03.1]}
60. Rb5 {[%clk 0:00:03.4]} 60... Rd8+ {[%clk 0:00:02.7]} 61. Ke7 {[%clk
0:00:03.8]} 61... Rf8 {[%clk 0:00:02.7]} 62. a5 {[%clk 0:00:04.1]} 62... Ra8
{[%clk 0:00:02.7]} 63. a6 {[%clk 0:00:04.4]} 63... Ra7+ {[%clk 0:00:03.1]} 64.
Rb7 {[%clk 0:00:04.8]} 64... Ra8 {[%clk 0:00:03]} 65. a7 {[%clk 0:00:05.3]}
65... Rf8 {[%clk 0:00:01.3]} 66. Rb8 {[%clk 0:00:05.7]} 1-0

[Event "Late-Titled-Tuesday-Blitz-May-28-2024"]
[Site "Chess.com"]
[Date "2024.05.28"]
[Round "7"]
[White "DucksParadise"]
[Black "NajdorfPlayerc5"]
[Result "1/2-1/2"]
[WhiteElo "2558"]
[BlackElo "2447"]
[TimeControl "180+1"]
[EndTime "15:19:09 PDT"]
[Termination "Game drawn - insufficient material"]

1. e4 {[%clk 0:03:00.9]} 1... d6 {[%clk 0:03:00.9]} 2. d4 {[%clk 0:02:49.9]}
2... g6 {[%clk 0:02:56]} 3. c4 {[%clk 0:02:48]} 3... Bg7 {[%clk 0:02:52.3]} 4.
Nc3 {[%clk 0:02:47.4]} 4... e5 {[%clk 0:02:49.8]} 5. d5 {[%clk 0:02:43.1]} 5...
a6 {[%clk 0:02:48.4]} 6. Bd3 {[%clk 0:02:24.9]} 6... Ne7 {[%clk 0:02:26.4]} 7.
Nge2 {[%clk 0:02:23.3]} 7... O-O {[%clk 0:02:21.1]} 8. O-O {[%clk 0:02:22.6]}
8... Nd7 {[%clk 0:02:13.2]} 9. Be3 {[%clk 0:02:18.9]} 9... b6 {[%clk 0:01:45.4]}
10. b4 {[%clk 0:02:12.1]} 10... f5 {[%clk 0:01:40.3]} 11. f3 {[%clk 0:02:10.4]}
11... f4 {[%clk 0:01:34.9]} 12. Bf2 {[%clk 0:02:09]} 12... g5 {[%clk 0:01:34.2]}
13. Rc1 {[%clk 0:01:55.2]} 13... Ng6 {[%clk 0:01:27.9]} 14. Qb3 {[%clk
0:01:28.1]} 14... Nf6 {[%clk 0:00:54.3]} 15. c5 {[%clk 0:01:25.6]} 15... g4
{[%clk 0:00:45.8]} 16. cxb6 {[%clk 0:01:23.2]} 16... cxb6 {[%clk 0:00:43]} 17.
Na4 {[%clk 0:01:05.3]} 17... Rb8 {[%clk 0:00:40.2]} 18. b5 {[%clk 0:00:40]}
18... gxf3 {[%clk 0:00:31.3]} 19. gxf3 {[%clk 0:00:36]} 19... axb5 {[%clk
0:00:25.6]} 20. Bxb5 {[%clk 0:00:28.8]} 20... Bh3 {[%clk 0:00:24.5]} 21. Rfd1
{[%clk 0:00:12.7]} 21... Nh5 {[%clk 0:00:14.7]} 22. Kh1 {[%clk 0:00:12.8]} 22...
Nh4 {[%clk 0:00:12.4]} 23. Rg1 {[%clk 0:00:10.8]} 23... Kh8 {[%clk 0:00:10.3]}
24. Rc6 {[%clk 0:00:09]} 24... Rg8 {[%clk 0:00:07.7]} 25. Rxb6 {[%clk
0:00:06.5]} 25... Rxb6 {[%clk 0:00:03.7]} 26. Bxb6 {[%clk 0:00:05.8]} 26... Qf6
{[%clk 0:00:03.4]} 27. Bf2 {[%clk 0:00:03.3]} 27... Bh6 {[%clk 0:00:02.8]} 28.
Rxg8+ {[%clk 0:00:01.8]} 28... Kxg8 {[%clk 0:00:03.7]} 29. Bc4 {[%clk
0:00:01.8]} 29... Bg2+ {[%clk 0:00:03.4]} 30. Kg1 {[%clk 0:00:01.5]} 30... Bxf3
{[%clk 0:00:01.7]} 31. Qb8+ {[%clk 0:00:02.4]} 31... Kg7 {[%clk 0:00:01.5]} 32.
Qc7+ {[%clk 0:00:02.9]} 32... Kg6 {[%clk 0:00:01.9]} 33. Bxh4 {[%clk 0:00:02.8]}
33... Qxh4 {[%clk 0:00:02]} 34. Qxd6+ {[%clk 0:00:03.3]} 34... Nf6 {[%clk
0:00:02.3]} 35. Kf1 {[%clk 0:00:01.6]} 35... Qh3+ {[%clk 0:00:02]} 36. Ke1
{[%clk 0:00:02.2]} 36... Qg2 {[%clk 0:00:01.7]} 37. Kd2 {[%clk 0:00:01.8]} 37...
Bxe4 {[%clk 0:00:01.7]} 38. Kc3 {[%clk 0:00:01]} 38... f3 {[%clk 0:00:01.9]} 39.
Ng3 {[%clk 0:00:01.1]} 39... f2 {[%clk 0:00:01.7]} 40. Qxe5 {[%clk 0:00:01.5]}
40... f1=Q {[%clk 0:00:01.3]} 41. Bxf1 {[%clk 0:00:01.1]} 41... Qd2+ {[%clk
0:00:01.1]} 42. Kb3 {[%clk 0:00:01]} 42... Bxd5+ {[%clk 0:00:01]} 43. Ka3 {[%clk
0:00:01]} 43... Bf4 {[%clk 0:00:01]} 44. Qf5+ {[%clk 0:00:01]} 44... Kg7 {[%clk
0:00:01]} 45. Nh5+ {[%clk 0:00:01.9]} 45... Nxh5 {[%clk 0:00:01]} 46. Qxh5
{[%clk 0:00:02.8]} 46... Bd6+ {[%clk 0:00:01.3]} 47. Nc5 {[%clk 0:00:02]} 47...
Bxc5+ {[%clk 0:00:01.8]} 48. Ka4 {[%clk 0:00:02.9]} 48... Qxa2+ {[%clk
0:00:01.2]} 49. Kb5 {[%clk 0:00:03.8]} 49... Bd6 {[%clk 0:00:01]} 50. Kb6 {[%clk
0:00:04.1]} 50... Qb3+ {[%clk 0:00:01]} 51. Ka6 {[%clk 0:00:04.5]} 51... Qa4+
{[%clk 0:00:01]} 52. Kb6 {[%clk 0:00:04.8]} 52... Qb4+ {[%clk 0:00:01.4]} 53.
Ka6 {[%clk 0:00:05.3]} 53... Bc6 {[%clk 0:00:01.1]} 54. Qg5+ {[%clk 0:00:04.9]}
54... Kf7 {[%clk 0:00:01.2]} 55. Qf5+ {[%clk 0:00:05.6]} 55... Ke7 {[%clk
0:00:01.6]} 56. Qg5+ {[%clk 0:00:06.1]} 56... Kd7 {[%clk 0:00:01.9]} 57. Qf5+
{[%clk 0:00:06.5]} 57... Kc7 {[%clk 0:00:01.7]} 58. Qf7+ {[%clk 0:00:06.8]}
58... Bd7 {[%clk 0:00:02.2]} 59. Qc4+ {[%clk 0:00:07.4]} 59... Qxc4+ {[%clk
0:00:02.4]} 60. Bxc4 {[%clk 0:00:08.3]} 60... Bf5 {[%clk 0:00:01.9]} 61. Bd3
{[%clk 0:00:09.2]} 61... Bxh2 {[%clk 0:00:02]} 62. Bxf5 {[%clk 0:00:09.5]} 62...
h5 {[%clk 0:00:02.6]} 63. Bg6 {[%clk 0:00:09.6]} 63... h4 {[%clk 0:00:02.4]} 64.
Bf5 {[%clk 0:00:10.2]} 64... Kd6 {[%clk 0:00:02.7]} 65. Bh3 {[%clk 0:00:10.8]}
65... Ke5 {[%clk 0:00:03]} 66. Kb5 {[%clk 0:00:11.4]} 66... Bf4 {[%clk
0:00:03.6]} 67. Kc4 {[%clk 0:00:12.3]} 67... Be3 {[%clk 0:00:04]} 68. Kd3 {[%clk
0:00:12.9]} 68... Ba7 {[%clk 0:00:04.4]} 69. Ke2 {[%clk 0:00:13.5]} 69... Kf4
{[%clk 0:00:04.9]} 70. Kf1 {[%clk 0:00:13.8]} 70... Kg3 {[%clk 0:00:05.8]} 71.
Bc8 {[%clk 0:00:14.1]} 71... Kh2 {[%clk 0:00:04.2]} 72. Bd7 {[%clk 0:00:14.2]}
72... Kg3 {[%clk 0:00:04.6]} 73. Bc8 {[%clk 0:00:14.7]} 73... h3 {[%clk
0:00:04.8]} 74. Bxh3 {[%clk 0:00:14.6]} 1/2-1/2